bitfinex-derivatives/quotes_ETHF0:USTF0_20250923
["timestamp","ask_amount","ask_price","bid_price","bid_amount"]
[1758643739490,0.23747769,4170.9,4170.8,5.98206]
[1758643739688,0.43126,4171.3,4171.2,0.4366]
[1758643739888,0.64736,4171.3,4171.2,0.7423]
[1758643740090,1.18456,4171.3,4171.2,0.5202]
[1758643740491,0.85198,4171.1,4171.0,0.6459]
[1758643740691,1.18458,4171.1,4171.0,0.6459]
[1758643741700,0.85201,4170.8,4170.7,0.2145]
[1758643741998,1.18461,4170.8,4170.7,0.2145]
[1758643742196,1.18461,4170.8,4170.7,0.5202]
[1758643742393,0.2161,4170.8,4170.7,1.17362]
[1758643742592,0.64741,4170.8,4170.7,1.17362]
[1758643742796,0.64741,4170.8,4170.7,0.7423]
[1758643743292,1.18461,4170.8,4170.7,0.5202]
[1758643743498,1.18461,4170.8,4170.1,1.42168]
[1758643743499,0.2161,4170.2,4170.1,1.42168]
[1758643743693,0.64747,4170.2,4170.1,0.9903]
[1758643743889,0.85207,4170.2,4170.1,0.7423]
[1758643744405,0.85214,4169.6,4169.5,3.548]
[1758643744698,0.85214,4169.6,4169.5,0.868]
[1758643744903,0.2161,4169.6,4169.5,0.868]
[1758643745089,3.2078,4170.2,4169.6,0.3057]
[1758643745286,1.70873293,4170.1,4170.0,0.5202]
[1758643745593,1.37613293,4170.1,4170.0,0.868]
[1758643745794,0.85208,4170.1,4170.0,0.868]
[1758643746187,1.18468,4170.1,4170.0,0.7423]
[1758643746391,0.85214,4169.6,4169.5,0.868]
[1758643746793,0.2161,4169.6,4169.5,0.868]
[1758643746987,0.4207,4170.0,4169.9,0.2145]
[1758643747191,0.4207,4170.0,4169.9,0.7423]
[1758643747902,0.2161,4169.4,4169.3,0.3057]
[1758643748198,1.18476,4169.4,4169.3,0.5202]
[1758643748398,1.18479,4169.1,4169.0,0.6459]
[1758643749097,1.18479,4169.1,4169.0,0.5202]
[1758643749799,0.4207,4169.1,4169.0,0.7423]
[1758643749990,0.4207,4169.1,4169.0,0.868]
[1758643751903,0.65738584,4169.1,4169.0,0.868]
[1758643752193,0.45278584,4169.1,4169.0,1.2995]
[1758643752394,0.23668584,4169.1,4169.0,1.2995]
[1758643752601,0.5707,4170.3,4169.6,1.17684]
[1758643752798,4.39463,4169.7,4169.6,0.7454]
[1758643753101,4.39463,4169.7,4169.6,0.5315]
[1758643753298,3.6405,4169.7,4169.6,1.17684]
[1758643753506,4.07193,4169.7,4169.6,1.17684]
[1758643753703,4.07193,4169.7,4169.6,0.7454]
[1758643754099,1.18686,4169.4,4169.3,0.5315]
[1758643754304,0.86416,4169.4,4169.3,1.17687]
[1758643754803,0.4327,4169.4,4169.3,1.17687]
[1758643755192,0.64836,4169.4,4169.3,1.17687]
[1758643755395,0.2169,4169.4,4169.3,1.17687]
[1758643756302,3.4247,4169.7,4169.6,1.17684]
[1758643756604,3.85613,4169.7,4169.6,1.17684]
[1758643756904,3.2078,4169.7,4169.6,1.17684]
[1758643757411,4.39463,4169.7,4169.6,0.5315]
[1758643757605,3.2078,4169.7,4169.4,0.67946]
[1758643757903,0.7554,4169.5,4169.4,0.96296]
[1758643758205,0.4327,4169.5,4169.4,1.17686]
[1758643758598,0.2169,4169.5,4169.4,1.17686]
[1758643759002,3.2078,4169.7,4169.6,0.43144]
[1758643759205,3.85613,4169.7,4169.6,1.17684]
[1758643759403,3.4247,4169.7,4169.6,1.17684]
[1758643759906,3.2078,4169.7,4169.6,1.42484]
[1758643760505,3.2078,4169.7,4169.6,1.66467]
[1758643760697,3.2078,4169.7,4169.6,1.42484]
[1758643761092,0.64827,4170.2,4170.1,1.17677]
[1758643761306,0.86407,4170.2,4170.1,1.17677]
[1758643761506,0.4327,4170.2,4170.1,1.17677]
[1758643762009,0.86407,4170.2,4170.1,1.17677]
[1758643762405,0.4327,4170.2,4170.1,1.17677]
[1758643762907,0.2169,4170.2,4170.1,1.17677]
[1758643763102,3.2078,4170.4,4170.1,0.4372]
[1758643763307,3.85165,4170.4,4170.3,1.15836]
[1758643763605,3.85165,4170.4,4170.3,0.727]
[1758643763606,4.05675,4170.4,4170.3,0.727]
[1758643763906,4.37085,4170.4,4170.3,0.5197]
[1758643764205,1.16307,4170.2,4170.1,1.19908]
[1758643764711,0.23388593,4170.2,4170.1,1.40638]
[1758643765501,3.2078,4170.9,4170.8,1.15831]
[1758643765502,3.4203,4170.9,4170.8,1.15831]
[1758643765806,4.3708,4170.9,4170.8,0.5197]
[1758643766002,0.4176,4170.7,4170.6,0.95103]
[1758643766199,0.4176,4170.7,4170.6,1.15833]
[1758643766403,0.2125,4170.7,4170.6,1.15833]
[1758643766803,0.64382,4170.7,4170.6,0.727]
[1758643767000,0.84892,4170.7,4170.6,0.727]
[1758643767509,1.16302,4170.7,4170.6,0.5197]
[1758643768202,0.4176,4170.7,4170.6,1.15833]
[1758643768403,0.43129,4171.0,4170.8,0.4313]
[1758643768605,0.64379,4171.0,4170.9,0.727]
[1758643768806,0.2125,4171.0,4170.9,1.1583]
[1758643769412,0.64379,4171.0,4170.9,0.727]
[1758643769808,0.2125,4171.0,4170.9,1.1583]
[1758643770513,0.64379,4171.0,4170.9,1.1583]
[1758643771309,0.2125,4171.0,4170.9,1.1583]
[1758643771812,0.64379,4171.0,4170.9,1.1583]
[1758643772307,0.64379,4171.0,4170.9,0.727]
[1758643772505,0.64379,4171.0,4170.2,0.727]
[1758643772506,0.4176,4170.3,4170.2,0.727]
[1758643772706,1.16306,4170.3,4170.2,0.727]
[1758643773213,4.37086,4170.3,4170.2,0.5197]
[1758643773412,1.16308,4170.1,4170.0,0.5197]
[1758643773610,0.84902,4169.7,4169.6,3.9348]
[1758643773820,0.84902,4169.7,4169.6,4.1828]
[1758643774911,0.84902,4169.7,4169.6,0.975]
[1758643775814,0.84902,4169.7,4169.6,0.727]
[1758643777315,1.16312,4169.7,4169.6,0.727]
[1758643777510,1.40167748,4169.7,4169.6,0.727]
[1758643779121,0.64398,4169.2,4169.1,0.4229]
[1758643779309,0.45105748,4169.2,4169.1,1.64533999]
[1758643779511,0.23855748,4169.2,4169.1,1.40549]
[1758643779717,0.2125,4169.6,4169.5,1.29005]
[1758643780015,0.88252849,4169.6,4169.5,0.8586]
[1758643782411,0.67002849,4169.6,4169.5,1.1056]
[1758643782619,0.67002849,4169.6,4169.5,1.53704]
[1758643782915,0.23859849,4169.6,4169.5,1.53704]
[1758643783111,0.23859849,4169.6,4169.5,4.74484]
[1758643783507,3.63916,4170.3,4170.2,0.85427]
[1758643783706,3.85166,4170.3,4170.2,0.727]
[1758643783913,3.2078,4170.3,4170.2,1.15837]
[1758643784121,3.85162,4170.8,4170.7,0.727]
[1758643784313,4.05672,4170.8,4170.7,0.727]
[1758643784515,4.37082,4170.8,4170.7,0.727]
[1758643784709,0.84893,4170.6,4170.5,0.3472]
[1758643784918,1.16303,4170.6,4170.5,0.5197]
[1758643785421,1.16303,4170.6,4170.5,0.8586]
[1758643786219,0.84893,4170.6,4170.5,0.8586]
[1758643786616,1.16303,4170.6,4170.5,0.8586]
[1758643787515,1.16303,4170.6,4170.5,0.727]
[1758643788019,1.16307,4170.2,4170.1,0.5197]
[1758643788223,0.4176,4169.8,4169.7,0.727]
[1758643788425,0.2051,4169.8,4169.7,0.727]
[1758643788616,1.16307,4170.2,4170.1,0.5197]
[1758643789128,3.2078,4170.3,4170.2,1.15837]
[1758643789319,0.43136,4170.4,4170.2,1.15837]
[1758643789517,3.4203,4170.8,4170.7,0.727]
[1758643789820,4.37081,4170.8,4170.7,0.727]
[1758643790521,3.85161,4170.8,4170.7,0.727]
[1758643790824,0.64381,4170.8,4170.7,0.727]
[1758643791025,0.84891,4170.8,4170.7,0.727]
[1758643791224,1.16301,4170.8,4170.7,0.5197]
[1758643791622,1.16301,4170.8,4170.7,0.727]
[1758643792114,0.43133,4170.6,4170.5,0.1316]
[1758643792311,1.16303,4170.6,4170.5,0.5197]
[1758643792513,0.84896,4170.3,4170.2,0.5197]
[1758643792714,1.16306,4170.3,4170.2,0.5197]
[1758643793117,0.43138,4170.1,4170.0,3.3394]
[1758643793319,0.86758,4170.1,4170.0,3.5458]
[1758643793622,0.64353,4169.7,4169.6,0.6626]
[1758643793825,0.64353,4169.7,4169.6,0.9755]
[1758643795322,0.86763,4169.7,4169.6,0.3129]
[1758643795522,0.86763,4169.7,4169.6,0.7285]
[1758643795826,1.20453,4169.7,4169.6,0.7285]
[1758643796226,0.86763,4169.7,4169.6,0.7285]
[1758643797228,0.3369,4170.0,4169.6,0.7285]
[1758643797229,0.43142,4169.8,4169.6,1.15993]
[1758643797427,1.20452,4169.8,4169.7,0.7285]
[1758643797825,0.86762,4169.8,4169.7,0.7285]
[1758643798727,1.20452,4169.8,4169.7,0.7285]
[1758643798929,1.44013743,4169.8,4169.7,0.7285]
[1758643802121,1.44012743,4169.8,4169.7,1.15992]
[1758643802322,1.44012743,4169.8,4169.7,0.7285]
[1758643802521,1.44012743,4169.8,4169.7,1.15992]
[1758643802522,0.23561743,4169.8,4169.7,1.15992]
[1758643803427,1.44012743,4169.8,4169.7,0.7285]
[1758643803630,1.10322743,4169.8,4169.7,0.7285]
[1758643804527,0.67181743,4169.8,4169.7,1.15992]
[1758643805033,1.44012743,4169.8,4169.7,0.5193]
[1758643805730,1.44012743,4169.8,4169.7,0.95072]
[1758643806030,1.44012743,4169.8,4169.7,0.5193]
[1758643806225,1.44012743,4169.8,4169.5,0.1316]
[1758643806431,1.20453,4169.6,4169.5,0.6509]
[1758643806631,1.44014743,4169.6,4169.5,0.6509]
[1758643807131,1.44014743,4169.6,4169.0,0.1316]
[1758643807132,0.4362,4169.1,4169.0,1.5376]
[1758643807325,1.10330743,4169.1,4169.0,1.5376]
[1758643807633,0.67181743,4169.1,4169.0,1.5376]
[1758643808033,0.44771743,4169.1,4169.0,1.5376]
[1758643808830,0.87920743,4169.1,4169.0,1.5376]
[1758643809331,0.44771743,4169.1,4169.0,1.5376]
[1758643809636,0.23561743,4169.1,4169.0,1.5376]
[1758643810733,0.64359,4169.1,4169.0,1.5376]
[1758643810934,0.87794361,4169.1,4169.0,1.5376]
[1758643811138,0.44645361,4169.1,4169.0,1.5376]
[1758643812233,0.87794361,4169.1,4169.0,1.5376]
[1758643812936,0.87794361,4169.1,4169.0,1.1061]
[1758643813133,1.40774361,4169.1,4169.0,0.9745]
[1758643813334,1.40774361,4169.1,4169.0,0.7285]
[1758643813530,0.43152,4168.8,4168.7,0.43153]
[1758643813729,1.08707361,4168.8,4168.7,1.10713]
[1758643813929,1.08707361,4168.8,4168.7,0.86113]
[1758643814232,1.40437361,4168.8,4168.7,1.19253]
[1758643814434,1.40437361,4168.8,4168.7,1.43853]
[1758643815538,1.40437361,4168.8,4168.7,1.007]
[1758643815737,1.40437361,4168.8,4168.7,1.43853]
[1758643815934,0.97285361,4168.8,4168.7,1.43853]
[1758643816135,0.65555361,4168.8,4168.7,1.43853]
[1758643821140,0.23435361,4168.8,4168.7,1.43853]
[1758643821441,0.23435361,4168.8,4168.7,1.19253]
[1758643821642,0.65555361,4168.8,4168.7,1.43853]
[1758643821838,1.08707361,4168.8,4168.7,0.761]
[1758643822139,0.7385,4167.8,4167.7,0.2044]
[1758643822340,0.97285361,4167.8,4167.7,0.2044]
[1758643823337,0.2233,4167.6,4167.5,0.4513]
[1758643823541,1.16434,4167.6,4167.5,0.4513]
[1758643823734,1.39869361,4167.6,4167.5,0.4513]
[1758643824137,0.96705361,4167.6,4167.5,0.7629]
[1758643824339,0.96705361,4167.6,4167.5,1.1018]
[1758643824638,0.63637,4167.3,4167.2,3.7247]
[1758643824834,0.96705361,4167.3,4167.2,3.9707]
[1758643825229,0.96705361,4167.3,4167.2,4.1875]
[1758643825428,0.96705361,4167.3,4167.2,3.9415]
[1758643825738,0.96705361,4167.3,4167.2,4.1875]
[1758643826235,0.66235361,4167.3,4167.2,4.1875]
[1758643827437,0.66235361,4167.3,4167.2,3.9415]
[1758643827743,0.66235361,4167.3,4167.2,4.1875]
[1758643827744,0.96705361,4167.3,4167.2,4.1875]
[1758643827948,0.96705361,4167.3,4167.2,3.4131]
[1758643828140,0.96705361,4167.3,4167.2,3.7247]
[1758643830341,0.96705361,4167.3,4167.2,0.2053]
[1758643830539,0.96705361,4167.3,4166.9,0.3116]
[1758643830540,0.428,4167.0,4166.9,0.3116]
[1758643830736,0.7327,4166.8,4166.7,0.02027878]
[1758643830937,0.96705361,4166.8,4166.7,0.02027878]
[1758643831134,0.96705361,4166.8,4166.7,0.75397878]
[1758643831342,0.23435361,4166.8,4166.7,0.75397878]
[1758643831635,0.43164,4167.6,4167.2,0.43168]
[1758643831936,0.43164,4167.6,4167.5,0.8558]
[1758643831937,0.428,4167.6,4167.5,0.8558]
[1758643832136,0.66875401,4167.6,4167.5,0.8558]
[1758643832634,0.24075401,4167.6,4167.5,0.8558]
[1758643833044,0.14461902,4167.6,4167.5,6.1018]
[1758643833232,3.4125,4168.4,4168.3,0.7337]
[1758643833635,3.2078,4168.4,4168.3,0.7337]
[1758643833836,0.3047,4168.8,4168.3,0.7337]
[1758643834146,0.7327,4168.4,4168.3,0.4221]
[1758643834542,0.7327,4168.1,4168.0,0.5576]
[1758643834748,0.7327,4168.1,4168.0,0.7629]
[1758643834950,0.5094,4168.5,4168.4,0.4221]
[1758643835144,0.7327,4168.5,4168.4,0.7337]
[1758643835549,0.5094,4168.8,4168.7,0.7337]
[1758643835851,0.7327,4168.8,4168.7,0.7337]
[1758643836446,0.2047,4168.8,4168.7,0.7337]
[1758643836752,0.7327,4168.8,4168.7,0.7337]
[1758643837147,0.428,4168.8,4168.7,0.7337]
[1758643837449,0.2047,4169.2,4169.1,1.16519]
[1758643837655,0.7327,4169.2,4169.1,0.7337]
[1758643838452,0.428,4169.2,4169.1,0.7337]
[1758643838642,0.7327,4169.2,4169.1,0.7337]
[1758643840338,0.428,4168.8,4168.7,0.7337]
[1758643840542,0.7327,4168.8,4168.7,1.16523]
[1758643841645,0.428,4168.8,4168.7,1.16523]
[1758643841843,0.8595,4169.0,4168.9,0.7337]
[1758643842047,1.1642,4169.0,4168.9,0.7337]
[1758643842446,0.7327,4168.2,4168.1,0.2053]
[1758643842746,0.428,4168.2,4168.1,0.6671]
[1758643842952,0.2047,4168.2,4168.1,1.09869]
[1758643843150,0.2047,4168.2,4168.1,1.41029]
[1758643843353,0.63628,4168.2,4168.1,0.9787]
[1758643843542,3.2078,4168.4,4168.2,0.43157]
[1758643843851,3.4125,4168.4,4168.3,1.16527]
[1758643844249,4.37206,4168.4,4168.3,0.5169]
[1758643845143,3.8739158,4168.4,4168.3,0.7337]
[1758643845349,3.4459158,4168.4,4168.3,0.7337]
[1758643845546,3.6506158,4168.4,4168.3,0.7337]
[1758643845956,4.6101758,4168.4,4168.3,0.5169]
[1758643846645,1.16429,4168.1,4168.0,0.5169]
[1758643846847,0.43162,4167.9,4167.8,0.2053]
[1758643847152,1.0977358,4167.9,4167.8,0.2053]
[1758643847344,0.6661158,4167.9,4167.8,1.16532]
[1758643847546,0.2381158,4167.9,4167.8,1.16532]
[1758643847844,0.2047,4168.1,4168.0,1.2874]
[1758643848047,0.44289651,4168.1,4168.0,1.2874]
[1758643848246,0.87448651,4168.1,4168.0,1.2874]
[1758643848447,0.23819651,4168.1,4168.0,1.2874]
[1758643848688,0.23819651,4168.1,4168.0,1.5324]
[1758643848854,0.23819651,4168.1,4168.0,1.2874]
[1758643849250,0.44289651,4168.1,4168.0,1.5334]
[1758643849651,0.23819651,4168.1,4168.0,1.5334]
[1758643849854,0.44289651,4168.1,4168.0,0.8558]
[1758643850153,1.40248651,4168.1,4168.0,0.5169]
[1758643850342,1.40248651,4168.1,4167.6,0.6681]
[1758643850343,1.16433,4167.7,4167.6,0.6681]
[1758643850656,1.40252651,4167.7,4167.6,0.7337]
[1758643850951,1.40252651,4167.7,4167.3,0.246]
[1758643850952,0.43166,4167.4,4167.3,0.246]
[1758643851251,1.40255651,4167.4,4167.3,0.5169]
[1758643851454,1.16439,4167.1,4167.0,0.5169]
[1758643851647,1.40258651,4167.1,4167.0,0.7337]
[1758643851949,0.44289651,4167.1,4167.0,0.8558]
[1758643852348,0.66619651,4167.1,4167.0,0.8558]
[1758643853155,0.98689651,4167.1,4167.0,0.8558]
[1758643854051,2.15773,4168.6,4167.6,0.43164]
[1758643854052,3.2078,4167.9,4167.6,0.43164]
[1758643854255,3.4199,4167.9,4167.8,0.7483]
[1758643854450,3.9611,4167.9,4167.8,0.7483]
[1758643856157,3.6404,4167.9,4167.8,0.7483]
[1758643856654,3.9611,4167.9,4167.8,0.7483]
[1758643857863,3.9611,4167.9,4167.8,1.17992]
[1758643858154,3.6404,4167.9,4167.8,1.17992]
[1758643858360,0.64365,4168.5,4168.4,0.2171]
[1758643858562,1.18485,4168.5,4168.4,0.7483]
[1758643859655,1.18485,4168.5,4168.4,0.2126]
[1758643859856,0.7533,4168.5,4168.4,0.96276]
[1758643860258,1.18485,4168.5,4168.4,0.5312]
[1758643860456,1.18485,4168.5,4168.4,0.2126]
[1758643860761,1.18485,4168.5,4168.4,0.5312]
[1758643861261,1.18485,4168.5,4168.4,0.7483]
[1758643861662,1.18485,4168.5,4168.4,0.2126]
[1758643862064,0.7533,4168.5,4168.4,1.17986]
[1758643862359,1.07865,4169.4,4168.4,1.17986]
[1758643862360,3.2078,4169.1,4168.4,0.245]
[1758643862561,0.64358,4169.3,4169.2,0.4297]
[1758643862867,1.18478,4169.3,4169.2,0.7483]
[1758643863052,0.7533,4169.3,4169.2,1.17978]
[1758643863253,0.2121,4169.3,4169.2,1.17978]
[1758643863457,0.4326,4169.3,4169.2,1.17978]
[1758643863662,0.7533,4169.3,4169.2,1.17978]
[1758643863868,0.4326,4169.3,4169.2,1.17978]
[1758643864053,3.2078,4169.6,4169.5,1.30394]
[1758643864466,3.6404,4170.1,4170.0,0.8725]
[1758643864864,3.9611,4170.1,4170.0,0.8725]
[1758643865064,3.2078,4170.1,4170.0,0.8725]
[1758643865365,0.4441,4170.5,4170.4,0.2126]
[1758643865366,0.3207,4170.5,4170.4,0.2126]
[1758643865566,3.2078,4170.6,4170.4,1.17965]
[1758643865763,3.2078,4170.6,4170.5,0.8725]
[1758643866065,3.44191699,4170.6,4170.5,0.8725]
[1758643866463,3.2078,4170.6,4170.5,0.8725]
[1758643866966,0.4581,4171.2,4171.1,0.7483]
[1758643867163,0.7533,4171.2,4171.1,0.7483]
[1758643867368,0.7533,4171.2,4170.7,0.9943]
[1758643867369,0.2121,4170.8,4170.7,0.9943]
[1758643868163,0.2121,4170.8,4170.7,0.7483]
[1758643868366,0.2121,4170.8,4170.7,0.9943]
[1758643868668,4.07165,4171.4,4171.3,0.2126]
[1758643868870,0.86387,4171.2,4171.1,0.2126]
[1758643869066,1.18457,4171.2,4171.1,0.2126]
[1758643869461,3.2078,4171.4,4171.1,0.4297]
[1758643869768,0.43118,4172.1,4171.9,0.3186]
[1758643869979,0.7533,4172.2,4172.1,0.7483]
[1758643870270,0.7533,4172.2,4171.7,0.3186]
[1758643870461,0.2121,4171.7,4171.6,1.17953]
[1758643870664,0.7533,4171.7,4171.6,0.7483]
[1758643870963,0.7533,4171.7,4171.6,0.5312]
[1758643871164,0.7478,4172.2,4172.1,0.2145]
[1758643871378,0.2026,4172.2,4172.1,0.7606]
[1758643871676,3.4104,4172.3,4172.2,1.19177]
[1758643872270,3.4104,4172.3,4172.2,0.7606]
[1758643872464,0.2026,4172.3,4172.2,0.7606]
[1758643873158,0.2026,4172.5,4172.4,0.7606]
[1758643874867,0.7478,4172.5,4172.4,0.7606]
[1758643875462,0.62794534,4172.8,4172.5,0.3487]
[1758643875662,0.43111,4172.7,4172.6,0.3278]
[1758643876065,1.05905534,4172.8,4172.6,0.97342]
[1758643876367,0.62794534,4172.8,4172.7,0.5423]
[1758643876563,0.4311,4172.9,4172.7,0.4328]
[1758643876869,0.246,4173.2,4173.0,0.1342]
[1758643877065,0.246,4173.2,4173.1,0.3278]
[1758643877066,0.67706,4173.2,4173.1,0.3278]
[1758643878066,0.67706,4173.2,4173.1,1.19167]
[1758643878264,0.246,4173.2,4173.1,1.19167]
[1758643878466,3.2078,4173.3,4173.2,1.19166]
[1758643879071,3.63645,4173.3,4173.2,1.19166]
[1758643879277,3.63879,4173.9,4173.8,0.2145]
[1758643879480,3.88479,4173.9,4173.8,0.3278]
[1758643879774,3.88479,4173.9,4173.5,0.1342]
[1758643879775,0.43102,4173.6,4173.5,0.462]
[1758643881475,0.67702,4173.6,4173.5,0.462]
[1758643881868,0.43107,4173.1,4173.0,0.462]
[1758643883272,0.43107,4173.1,4172.7,3.5245]
[1758643883273,0.4311,4172.8,4172.7,3.5245]
[1758643885775,5.4311,4172.8,4172.7,3.2078]
[1758643886472,0.43112,4172.6,4172.5,0.1342]
[1758643886779,3.88492,4172.6,4172.5,0.4509]
[1758643889381,4.41702691,4172.6,4172.5,0.4509]
[1758643890076,0.43118,4172.1,4172.0,0.3509]
[1758643890382,0.67618,4172.1,4172.0,0.1342]
[1758643890572,0.67618,4172.1,4172.0,0.4509]
[1758643890772,0.67618,4172.1,4172.0,0.6676]
[1758643891573,1.20877977,4172.1,4172.0,0.6676]
[1758643891877,1.20877977,4172.1,4172.0,0.4509]
[1758643892275,1.24997977,4172.1,4172.0,0.21718268]
[1758643892468,1.31687977,4172.1,4172.0,0.21718268]
[1758643893071,1.29117977,4172.1,4172.0,0.56128268]
[1758643893277,1.24997977,4172.1,4172.0,0.76648268]
[1758643893476,1.29117977,4172.1,4172.0,0.56128268]
[1758643894082,1.29117977,4172.1,4172.0,0.56048268]
[1758643896988,1.04617977,4172.1,4172.0,0.56048268]
[1758643897185,1.29117977,4172.1,4172.0,0.76568268]
[1758643898087,1.04617977,4172.1,4172.0,0.56048268]
[1758643898287,1.31767977,4172.1,4172.0,0.34378268]
[1758643898479,0.51622,4171.7,4171.6,3.9464]
[1758643898978,1.04881977,4171.7,4171.6,3.9464]
[1758643899683,1.00631977,4171.7,4171.6,3.9464]
[1758643899988,1.25131977,4171.7,4171.6,3.9464]
[1758643900592,1.32031977,4171.7,4171.6,0.3167]
[1758643900784,1.29381977,4171.7,4171.6,0.5334]
[1758643900983,1.29381977,4171.7,4171.6,0.7386]
[1758643902182,1.32031977,4171.7,4171.6,0.3167]
[1758643902377,1.02658,4171.1,4171.0,0.4441]
[1758643902586,1.87744407,4171.1,4171.0,0.866]
[1758643902779,2.03814407,4171.1,4171.0,0.6608]
[1758643903291,2.03925505,4171.1,4171.0,0.6608]
[1758643903486,0.65213,4170.6,4170.5,0.5493]
[1758643903791,1.41980505,4170.6,4170.5,0.866]
[1758643904884,0.245,4170.7,4170.5,0.866]
[1758643904885,1.1862,4171.9,4171.8,0.7386]
[1758643905089,0.4312,4171.9,4171.8,0.7386]
[1758643905290,0.65199,4172.0,4171.9,0.7386]
[1758643905489,1.56559,4172.0,4171.9,0.4219]
[1758643905690,1.56559,4172.0,4171.9,0.2167]
[1758643906591,1.56559,4172.0,4171.9,0.4219]
[1758643907693,0.8884,4172.0,4171.9,0.4219]
[1758643907888,0.246,4172.0,4171.9,0.7479]
[1758643908094,0.246,4172.0,4171.9,1.1698]
[1758643908591,1.21836,4172.3,4172.2,0.85307]
[1758643908902,0.3204,4172.8,4172.2,0.2052]
[1758643909196,1.1861,4172.8,4172.7,0.7386]
[1758643909403,1.4321,4172.8,4172.7,0.7386]
[1758643910691,1.4321,4172.8,4172.7,0.4219]
[1758643910886,0.43114,4172.4,4172.3,0.3167]
[1758643911199,0.97234,4172.4,4172.3,0.7386]
[1758643911395,1.18614,4172.4,4172.3,0.4219]
[1758643912592,0.5412,4172.4,4172.3,0.7386]
[1758643912794,1.43113,4172.6,4172.5,0.4219]
[1758643913186,1.43113,4172.6,4172.5,0.2167]
[1758643913391,0.43116,4172.3,4172.2,3.2078]
[1758643913597,1.20326,4172.3,4172.2,3.4294]
[1758643913796,1.20326,4172.3,4172.2,3.6332]
[1758643914593,1.20326,4172.3,4172.2,4.06437]
[1758643914790,1.20326,4172.3,4172.2,3.6332]
[1758643915095,1.20326,4172.3,4172.2,3.9524]
[1758643915297,1.20326,4172.3,4172.2,4.38357]
[1758643915601,1.20326,4172.3,4172.2,3.9524]
[1758643915901,1.20326,4172.3,4172.2,4.38357]
[1758643916101,1.20326,4172.3,4172.2,3.9524]
[1758643916497,1.20326,4172.3,4172.2,3.6332]
[1758643916703,1.20326,4172.3,4172.2,4.38357]
[1758643918507,1.20326,4172.3,4172.2,3.9524]
[1758643918799,1.20326,4172.3,4172.2,3.6332]
[1758643919001,1.2033,4171.9,4171.8,0.2216]
[1758643919402,1.20331,4171.8,4171.7,3.4294]
[1758643919904,0.86726,4171.3,4171.2,3.6332]
[1758643920207,1.20336,4171.3,4171.2,3.4294]
[1758643920405,1.20336,4171.3,4171.2,3.2078]
[1758643920606,1.20336,4171.3,4171.2,3.6332]
[1758643920806,1.20336,4171.3,4171.2,3.9524]
[1758643921002,1.20336,4171.3,4171.2,3.2078]
[1758643921209,0.98101,4170.8,4170.7,0.7446]
[1758643921400,1.20341,4170.8,4170.6,3.2078]
[1758643921601,0.7721,4170.7,4170.6,3.4294]
[1758643921803,0.7721,4170.7,4170.6,3.2078]
[1758643922105,0.7721,4170.7,4170.6,3.4294]
[1758643922612,0.7721,4170.7,4170.6,3.6332]
[1758643923798,1.00170249,4170.7,4170.6,0.2216]
[1758643923999,1.00170249,4170.7,4170.6,0.2208]
[1758643926509,1.20345,4170.4,4170.3,0.2216]
[1758643926703,0.43138,4170.1,4170.0,3.4294]
[1758643926915,1.43308249,4170.1,4170.0,3.6332]
[1758643927606,1.43308249,4170.1,4170.0,3.9524]
[1758643928006,0.22960249,4170.1,4170.0,4.0765]
[1758643928402,0.22960249,4170.1,4170.0,4.3215]
[1758643930004,0.66098249,4170.1,4170.0,4.3215]
[1758643931810,1.44348249,4170.1,4170.0,3.6332]
[1758643932013,1.21918249,4170.1,4170.0,3.9781]
[1758643932910,1.44348249,4170.1,4170.0,3.9781]
[1758643933115,1.44348249,4170.1,4170.0,3.2078]
[1758643933316,1.44348249,4170.1,4169.6,0.3336]
[1758643933317,0.87852,4169.7,4169.6,0.2062]
[1758643933507,1.10812249,4169.7,4169.6,0.2062]
[1758643933907,1.44352249,4169.7,4169.6,0.2062]
[1758643935421,0.7825,4169.3,4169.2,0.2062]
[1758643935618,1.44357249,4169.3,4169.2,0.4213]
[1758643936618,1.44357249,4169.3,4169.2,1.18638]
[1758643936816,0.22960249,4169.3,4169.2,1.18638]
[1758643937318,1.59259,4170.0,4169.9,0.4213]
[1758643937520,1.82133024,4170.0,4169.9,0.4213]
[1758643937715,1.21392,4169.7,4169.6,0.2062]
[1758643937914,1.44266024,4169.7,4169.6,0.2062]
[1758643938217,1.44266024,4169.7,4169.6,0.4213]
[1758643938406,1.44266024,4169.7,4169.6,0.7549]
[1758643939328,1.44266024,4169.7,4169.6,0.7541]
[1758643940225,1.44266024,4169.7,4169.6,1.18553]
[1758643940426,1.44266024,4169.7,4169.6,0.7541]
[1758643941025,0.22874024,4169.7,4169.6,1.18553]
[1758643941216,0.4314,4169.9,4169.8,0.7549]
[1758643941416,0.66023105,4169.9,4169.8,0.7549]
[1758643941624,1.21843105,4169.9,4169.8,1.18631]
[1758643941822,1.21843105,4169.9,4169.8,0.7549]
[1758643942024,1.44273105,4169.9,4169.8,0.7549]
[1758643942427,1.44273105,4169.9,4169.8,0.4213]
[1758643943828,1.18513,4169.6,4169.5,3.4117]
[1758643944036,1.41396105,4169.6,4169.5,3.4117]
[1758643944228,1.41396105,4169.6,4169.5,4.04764]
[1758643944427,0.22883105,4169.6,4169.5,4.37544]
[1758643944631,0.43143,4169.7,4169.6,1.16763]
[1758643944828,1.19966429,4169.7,4169.6,1.16763]
[1758643945040,1.41416429,4169.7,4169.6,0.7362]
[1758643945331,1.41416429,4169.7,4169.6,0.4084]
[1758643945530,0.22903429,4169.7,4169.6,1.41263]
[1758643945735,0.97058,4170.1,4170.0,0.7362]